[Event "44th Chess Olympiad Women 2022"]
[Site "Chennai"]
[Date "2022.08.02"]
[Round "5.11"]
[White "Alinasab, Mobina"]
[Black "Salimova, Nurgyul"]
[Result "0-1"]
[ECO "B15"]
[WhiteElo "2364"]
[BlackElo "2416"]
[Annotator "RC"]
[PlyCount "106"]
[EventDate "2022.07.29"]
[EventType "team-tourn"]
[EventCountry "IND"]
[SourceTitle "playchess.com"]
[Source "ChessBase"]
[SourceQuality "1"]
[WhiteTeam "Iran"]
[BlackTeam "Bulgaria"]
[WhiteTeamCountry "IRI"]
[BlackTeamCountry "BUL"]
[TimeControl "40/5400+30:1800+30"]

1. e4 {[%emt 0:00:07]} c6 {[%emt 0:00:11]} 2. d4 {[%emt 0:00:16]} d5 {[%emt 0:00:06]} 3. Nd2 {[%emt 0:00:09]} dxe4 {[%emt 0:00:08]} 4. Nxe4 {[%emt 0:00:06]} Nf6 {[%emt 0:00:05]} 5. Nxf6+ {[%emt 0:00:06]} exf6 {[%emt 0:00:05]} 6. c3 {[%emt 0:00:23]} Bd6 {[%emt 0:00:14]} 7. Bd3 {[%emt 0:00:25]} O-O {[%emt 0:00:15]} 8. Qc2 {[%emt 0:00:10]} Re8+ {[%emt 0:00:14]} 9. Ne2 {[%emt 0:00:22]} h5 {[%emt 0:00:42]} 10. O-O {[%emt 0:00:29]} h4 {[%emt 0:01:01]} 11. h3 {[%emt 0:00:11]} Nd7 {[%emt 0:01:52]} 12. Bd2 {[%emt 0:00:58]} Nf8 {[%emt 0:00:30]} 13. Rae1 {[%emt 0:00:30]} Bc7 {[%emt 0:07:24]} 14. f4 {[%emt 0:05:27]} Qd6 {[%emt 0:03:39]} 15. c4 {[%emt 0:04:09]} Ne6 {[%emt 0:11:29]} 16. Kh1 {[%emt 0:11:56]} b6 {[%emt 0:08:00]} 17. d5 {[%emt 0:26:47]} cxd5 {[%emt 0:09:50]} 18. cxd5 {[%emt 0:01:05]} Nc5 {[%emt 0:01:23]} 19. Nc3 {[%emt 0:10:05]} Bd7 {[%emt 0:05:34]} 20. Nb5 {[%emt 0:05:44]} Bxb5 {[%emt 0:00:48]} 21. Bxb5 {[%emt 0:00:07]} Rxe1 {[%emt 0:05:06]} 22. Rxe1 {[%emt 0:00:47]} a5 {[%emt 0:00:44]} 23. Bc6 {[%emt 0:02:44]} Rd8 {[%emt 0:03:31]} 24. a3 {[%emt 0:16:40]} a4 {[%emt 0:01:29]} 25. Be3 {[%emt 0:05:42]} g6 {[%emt 0:04:24]} 26. Kg1 {[%emt 0:03:07]} f5 {[%emt 0:02:39]} 27. Qf2 {[%emt 0:03:01]} g5 {[%emt 0:09:12]} 28. Bxc5 {[%emt 0:01:39]} bxc5 {[%emt 0:00:11]} 29. Rd1 {[%emt 0:01:12]} c4 {[%emt 0:02:31]} 30. Re1 {[%emt 0:00:32]} Rb8 {[%emt 0:05:44]} 31. Qd2 {[%emt 0:00:31]} Qc5+ {[%emt 0:01:48]} 32. Kf1 {[%emt 0:00:27]} Bxf4 {[%emt 0:03:09]} 33. Qc3 {[%emt 0:00:19]} Bh2 {[%emt 0:01:43]} 34. Qe3 {[%emt 0:00:32]} Qxe3 {[%emt 0:00:45]} 35. Rxe3 {[%emt 0:00:01]} Rxb2 {[%emt 0:00:24]} 36. Rc3 {[%emt 0:00:41]} Bg3 {[%emt 0:04:22]} 37. Rxc4 {[%emt 0:00:04]} Rf2+ {[%emt 0:01:20]} 38. Kg1 {[%emt 0:00:10]} Ra2 {[%emt 0:00:35]} 39. Kf1 {[%emt 0:00:14]} Rxa3 {[%emt 0:00:41]} 40. Rxa4 {[%emt 0:00:25]} Re3 {[%emt 0:00:34]} 41. Ra1 {[%emt 0:32:07]} g4 {[%emt 0:32:18]} 42. hxg4 {[%emt 0:00:00]} fxg4 {[%emt 0:00:00]} 43. Rd1 {[%emt 0:00:00]} Bd6 {[%emt 0:00:00]} 44. Re1 {[%emt 0:00:00]} Rc3 {[%emt 0:00:00]} 45. Re4 {[%emt 0:00:00]} f5 {[%emt 0:00:00]} 46. Re6 {[%emt 0:00:00]} Bg3 {[%emt 0:00:00]} 47. Ke2 {[%emt 0:01:22]} h3 {[%emt 0:00:00]} 48. gxh3 {[%emt 0:00:04]} gxh3 {[%emt 0:00:00]} 49. d6 {[%emt 0:02:34]} Rxc6 {[%emt 0:00:00]} 50. Rg6+ {[%emt 0:00:01]} Kf7 {[%emt 0:00:00]} 51. Rxg3 {[%emt 0:00:52]} h2 {[%emt 0:00:00]} 52. Rh3 {[%emt 0:00:35]} Rc1 {[%emt 0:00:00]} 53. Rh7+ {[%emt 0:00:32]} Ke8 {[%emt 0:00:00]} 0-1

[Event "44th Chess Olympiad Women 2022"]
[Site "Chennai"]
[Date "2022.08.02"]
[Round "5.11"]
[White "Radeva, Viktoria"]
[Black "Asgharzadeh, Mitra"]
[Result "0-1"]
[ECO "C55"]
[WhiteElo "2289"]
[BlackElo "1988"]
[Annotator "NA RC"]
[PlyCount "68"]
[EventDate "2022.07.29"]
[EventType "team-tourn"]
[EventCountry "IND"]
[SourceTitle "playchess.com"]
[Source "ChessBase"]
[SourceQuality "1"]
[WhiteTeam "Bulgaria"]
[BlackTeam "Iran"]
[WhiteTeamCountry "BUL"]
[BlackTeamCountry "IRI"]
[TimeControl "40/5400+30:1800+30"]

1. e4 {[%emt 0:00:03]} e5 {[%emt 0:00:10]} 2. Bc4 {[%emt 0:00:05]} Nf6 {[%emt 0:00:24]} 3. d3 {[%emt 0:00:08]} Nc6 {[%emt 0:00:13]} 4. Nf3 {[%emt 0:00:24]} h6 {[%emt 0:00:27]} 5. c3 {[%emt 0:00:33]} d6 {[%emt 0:00:43]} 6. a4 {[%emt 0:07:17]} a5 {[%emt 0:00:59]} 7. O-O {[%emt 0:02:20]} g5 {[%emt 0:00:38]} 8. Re1 {[%emt 0:01:30]} Bg7 {[%emt 0:02:39]} 9. d4 {[%emt 0:04:56]} g4 {[%emt 0:27:20]} 10. dxe5 {[%emt 0:07:31]} Nd7 {[%emt 0:02:21]} 11. e6 {[%emt 0:04:39]} fxe6 {[%emt 0:00:31]} 12. Nd4 {[%emt 0:00:27]} Nde5 {[%emt 0:00:11]} 13. Nxe6 {[%emt 0:01:09]} Qe7 {[%emt 0:01:26]} 14. Nxg7+ {[%emt 0:00:16]} Qxg7 {[%emt 0:00:03]} 15. Be2 {[%emt 0:06:39]} Be6 {[%emt 0:09:19]} 16. Be3 {[%emt 0:11:46]} h5 {[%emt 0:16:37]} 17. Nd2 {[%emt 0:04:00]} h4 {[%emt 0:03:17]} 18. Bf1 {[%emt 0:11:58]} Ke7 {[%emt 0:15:07]} 19. b4 {[%emt 0:10:33]} Rag8 {[%emt 0:08:19]} 20. b5 {[%emt 0:01:15]} Nd8 {[%emt 0:02:54]} 21. Bd4 {[%emt 0:03:48]} Ndf7 {[%emt 0:03:28]} 22. Re3 {[%emt 0:02:51]} Ng5 {[%emt 0:01:04]} 23. Qe1 {[%emt 0:08:58]} Rf8 {[%emt 0:01:52]} 24. Kh1 {[%emt 0:03:19]} Qf7 {[%emt 0:01:17]} 25. b6 {[%emt 0:01:22]} c6 {[%emt 0:00:58]} 26. Bxe5 {[%emt 0:01:35]} dxe5 {[%emt 0:00:02]} 27. f3 {[%emt 0:02:07]} Qf4 {[%emt 0:00:51]} 28. fxg4 {[%emt 0:00:52]} Bxg4 {[%emt 0:00:20]} 29. Rd3 {[%emt 0:00:48]} Rd8 {[%emt 0:00:43]} 30. Qc1 {[%emt 0:01:12]} Rxd3 {[%emt 0:00:36]} 31. Bxd3 {[%emt 0:00:01]} h3 {[%emt 0:00:30]} 32. Qa3+ {[%emt 0:01:32]} Ke8 {[%emt 0:00:26]} 33. Rg1 {[%emt 0:00:29]} Qxd2 {[%emt 0:00:38]} 34. Bf1 {[%emt 0:00:31]} Nxe4 {[%emt 0:00:22]} 0-1

[Event "44th Chess Olympiad Women 2022"]
[Site "Chennai"]
[Date "2022.08.02"]
[Round "5.11"]
[White "Krasteva, Beloslava"]
[Black "Mahdian, Anousha"]
[Result "1-0"]
[ECO "D02"]
[WhiteElo "2249"]
[BlackElo "2161"]
[Annotator "RC"]
[PlyCount "129"]
[EventDate "2022.07.29"]
[EventType "team-tourn"]
[EventCountry "IND"]
[SourceTitle "playchess.com"]
[Source "ChessBase"]
[SourceQuality "1"]
[WhiteTeam "Bulgaria"]
[BlackTeam "Iran"]
[WhiteTeamCountry "BUL"]
[BlackTeamCountry "IRI"]
[TimeControl "40/5400+30:1800+30"]

1. d4 {[%emt 0:00:08]} d5 {[%emt 0:00:03]} 2. Nf3 {[%emt 0:00:16]} e6 {[%emt 0:00:57]} 3. Bf4 {[%emt 0:00:52]} Bd6 {[%emt 0:01:48]} 4. e3 {[%emt 0:00:59]} Nf6 {[%emt 0:03:54]} 5. Ne5 {[%emt 0:01:40]} O-O {[%emt 0:03:05]} 6. Nd2 {[%emt 0:03:03]} b6 {[%emt 0:00:37]} 7. c3 {[%emt 0:09:17]} Ba6 {[%emt 0:01:46]} 8. Bxa6 {[%emt 0:03:25]} Nxa6 {[%emt 0:00:05]} 9. Qe2 {[%emt 0:01:48]} Qc8 {[%emt 0:11:01]} 10. h4 {[%emt 0:02:30]} Ne8 {[%emt 0:11:50]} 11. h5 {[%emt 0:03:54]} f6 {[%emt 0:05:49]} 12. Nef3 {[%emt 0:03:22]} c5 {[%emt 0:02:21]} 13. Bxd6 {[%emt 0:12:52]} Nxd6 {[%emt 0:00:08]} 14. g4 {[%emt 0:00:45]} b5 {[%emt 0:25:15]} 15. g5 {[%emt 0:04:01]} Nf5 {[%emt 0:06:35]} 16. h6 {[%emt 0:07:52]} g6 {[%emt 0:06:23]} 17. gxf6 {[%emt 0:02:14]} b4 {[%emt 0:00:32]} 18. e4 {[%emt 0:08:30]} bxc3 {[%emt 0:01:17]} 19. bxc3 {[%emt 0:00:46]} dxe4 {[%emt 0:07:13]} 20. Nxe4 {[%emt 0:00:55]} cxd4 {[%emt 0:00:06]} 21. Nfg5 {[%emt 0:05:37]} Nc5 {[%emt 0:05:48]} 22. f7+ {[%emt 0:10:11]} Rxf7 {[%emt 0:00:04]} 23. Nxf7 {[%emt 0:00:16]} Nxe4 {[%emt 0:01:33]} 24. Qxe4 {[%emt 0:01:00]} Kxf7 {[%emt 0:01:27]} 25. O-O {[%emt 0:04:08]} Qd8 {[%emt 0:00:48]} 26. cxd4 {[%emt 0:01:46]} Qg5+ {[%emt 0:00:34]} 27. Qg2 {[%emt 0:00:05]} Kf6 {[%emt 0:00:45]} 28. Rab1 {[%emt 0:05:39]} Nxd4 {[%emt 0:01:27]} 29. Qxg5+ {[%emt 0:00:27]} Kxg5 {[%emt 0:00:03]} 30. Rb7 {[%emt 0:00:32]} Kxh6 {[%emt 0:00:24]} 31. Kg2 {[%emt 0:00:26]} Kg5 {[%emt 0:01:20]} 32. Rxh7 {[%emt 0:00:31]} e5 {[%emt 0:00:35]} 33. Re1 {[%emt 0:01:41]} Kf6 {[%emt 0:00:23]} 34. Rb1 {[%emt 0:00:28]} Nf5 {[%emt 0:00:38]} 35. Rbb7 {[%emt 0:00:43]} e4 {[%emt 0:00:20]} 36. Rxa7 {[%emt 0:01:00]} Rc8 {[%emt 0:00:12]} 37. Rhc7 {[%emt 0:00:41]} Rb8 {[%emt 0:00:18]} 38. Rc6+ {[%emt 0:00:39]} Kg5 {[%emt 0:00:23]} 39. Re6 {[%emt 0:03:36]} Rb4 {[%emt 0:01:02]} 40. a3 {[%emt 0:01:02]} Rc4 {[%emt 0:00:36]} 41. Kh2 {[%emt 0:15:31]} Nh4 {[%emt 0:12:24]} 42. Ra5+ {[%emt 0:03:15]} Kg4 {[%emt 0:01:04]} 43. Rb5 {[%emt 0:02:03]} Nf3+ {[%emt 0:13:03]} 44. Kg2 {[%emt 0:00:05]} Nh4+ {[%emt 0:00:10]} 45. Kf1 {[%emt 0:00:51]} Rc1+ {[%emt 0:05:55]} 46. Ke2 {[%emt 0:00:11]} Rc2+ {[%emt 0:00:03]} 47. Kd1 {[%emt 0:01:45]} Rxf2 {[%emt 0:00:22]} 48. Rxe4+ {[%emt 0:00:05]} Kg3 {[%emt 0:00:33]} 49. Rg5+ {[%emt 0:01:24]} Kh3 {[%emt 0:00:11]} 50. Rgg4 {[%emt 0:01:26]} Nf5 {[%emt 0:01:20]} 51. Rxg6 {[%emt 0:00:40]} Rf3 {[%emt 0:00:37]} 52. a4 {[%emt 0:00:40]} Ra3 {[%emt 0:00:26]} 53. Kc2 {[%emt 0:00:43]} Rf3 {[%emt 0:00:37]} 54. a5 {[%emt 0:01:36]} Ra3 {[%emt 0:00:13]} 55. a6 {[%emt 0:00:58]} Ra5 {[%emt 0:00:17]} 56. Re8 {[%emt 0:01:22]} Rc5+ {[%emt 0:00:47]} 57. Kd3 {[%emt 0:00:53]} Ra5 {[%emt 0:00:16]} 58. Rh8+ {[%emt 0:00:13]} Nh4 {[%emt 0:00:03]} 59. Kc4 {[%emt 0:01:25]} Ra1 {[%emt 0:00:21]} 60. Kb5 {[%emt 0:00:42]} Rb1+ {[%emt 0:00:06]} 61. Kc6 {[%emt 0:00:40]} Ra1 {[%emt 0:00:11]} 62. Kb7 {[%emt 0:00:08]} Rb1+ {[%emt 0:00:13]} 63. Ka7 {[%emt 0:00:22]} Ra1 {[%emt 0:00:12]} 64. Rgh6 {[%emt 0:00:16]} Ra4 {[%emt 0:00:06]} 65. Rxh4+ {[%emt 0:00:13]} 1-0

[Event "44th Chess Olympiad Women 2022"]
[Site "Chennai"]
[Date "2022.08.02"]
[Round "5.11"]
[White "Zahedifar, Anahita"]
[Black "Antova, Gabriela"]
[Result "0-1"]
[ECO "D36"]
[WhiteElo "2160"]
[BlackElo "2275"]
[Annotator "RC"]
[PlyCount "147"]
[EventDate "2022.07.29"]
[EventType "team-tourn"]
[EventCountry "IND"]
[SourceTitle "playchess.com"]
[Source "ChessBase"]
[SourceQuality "1"]
[WhiteTeam "Iran"]
[BlackTeam "Bulgaria"]
[WhiteTeamCountry "IRI"]
[BlackTeamCountry "BUL"]
[TimeControl "40/5400+30:1800+30"]

1. d4 {[%emt 0:00:21]} d5 {[%emt 0:00:10]} 2. c4 {[%emt 0:00:08]} e6 {[%emt 0:00:09]} 3. Nc3 {[%emt 0:00:09]} Nf6 {[%emt 0:00:12]} 4. cxd5 {[%emt 0:00:10]} exd5 {[%emt 0:00:09]} 5. Bg5 {[%emt 0:00:07]} c6 {[%emt 0:00:09]} 6. e3 {[%emt 0:00:15]} Be7 {[%emt 0:00:10]} 7. Qc2 {[%emt 0:00:06]} Nbd7 {[%emt 0:00:15]} 8. Bd3 {[%emt 0:00:13]} Nh5 {[%emt 0:00:43]} 9. Bxe7 {[%emt 0:00:25]} Qxe7 {[%emt 0:00:14]} 10. O-O-O {[%emt 0:06:33]} Nb6 {[%emt 0:00:49]} 11. h3 {[%emt 0:02:40]} g6 {[%emt 0:00:21]} 12. Nf3 {[%emt 0:03:06]} Bd7 {[%emt 0:04:21]} 13. Ne5 {[%emt 0:05:31]} O-O-O {[%emt 0:12:09]} 14. Na4 {[%emt 0:03:53]} Nxa4 {[%emt 0:00:33]} 15. Qxa4 {[%emt 0:00:01]} Kb8 {[%emt 0:00:15]} 16. Kb1 {[%emt 0:01:30]} Ng7 {[%emt 0:12:34]} 17. Rc1 {[%emt 0:03:32]} f6 {[%emt 0:18:15]} 18. Nxd7+ {[%emt 0:02:57]} Qxd7 {[%emt 0:05:12]} 19. Rc3 {[%emt 0:04:02]} Ne8 {[%emt 0:03:34]} 20. Ra3 {[%emt 0:04:36]} b5 {[%emt 0:04:45]} 21. Qa6 {[%emt 0:03:57]} Nd6 {[%emt 0:04:40]} 22. Rc1 {[%emt 0:04:28]} Nc4 {[%emt 0:02:42]} 23. Rac3 {[%emt 0:05:00]} Qb7 {[%emt 0:03:37]} 24. Qxb7+ {[%emt 0:00:22]} Kxb7 {[%emt 0:00:01]} 25. Ka1 {[%emt 0:02:41]} Rd6 {[%emt 0:04:21]} 26. a4 {[%emt 0:09:57]} a6 {[%emt 0:03:50]} 27. b3 {[%emt 0:01:16]} b4 {[%emt 0:05:06]} 28. R3c2 {[%emt 0:00:11]} Na5 {[%emt 0:00:54]} 29. Kb2 {[%emt 0:00:51]} Kb6 {[%emt 0:00:42]} 30. h4 {[%emt 0:04:11]} g5 {[%emt 0:03:07]} 31. Rh1 {[%emt 0:01:52]} h6 {[%emt 0:00:14]} 32. hxg5 {[%emt 0:04:06]} fxg5 {[%emt 0:00:02]} 33. g4 {[%emt 0:00:46]} Rf6 {[%emt 0:05:44]} 34. Bf5 {[%emt 0:03:11]} Re8 {[%emt 0:00:57]} 35. Rh3 {[%emt 0:04:16]} Nb7 {[%emt 0:02:48]} 36. f4 {[%emt 0:05:10]} gxf4 {[%emt 0:03:26]} 37. exf4 {[%emt 0:00:09]} Re1 {[%emt 0:01:07]} 38. Bd7 {[%emt 0:08:28]} Na5 {[%emt 0:00:22]} 39. f5 {[%emt 0:01:35]} Rd1 {[%emt 0:00:35]} 40. Rch2 {[%emt 0:06:44]} Rxd4 {[%emt 0:00:10]} 41. Rxh6 {[%emt 0:30:57]} Rxh6 {[%emt 0:30:17]} 42. Rxh6 {[%emt 0:00:04]} Rxg4 {[%emt 0:00:27]} 43. f6 {[%emt 0:00:00]} Rg2+ {[%emt 0:00:00]} 44. Kb1 {[%emt 0:00:00]} Rf2 {[%emt 0:00:00]} 45. Be8 {[%emt 0:00:00]} Nxb3 {[%emt 0:00:00]} 46. f7 {[%emt 0:00:00]} Nd4 {[%emt 0:00:00]} 47. Rh8 {[%emt 0:00:00]} Ne6 {[%emt 0:00:00]} 48. Bd7 {[%emt 0:00:00]} Rxf7 {[%emt 0:00:00]} 49. Bxe6 {[%emt 0:00:00]} Rf6 {[%emt 0:00:00]} 50. Bc8 {[%emt 0:00:00]} Ka5 {[%emt 0:00:00]} 51. Kc2 {[%emt 0:00:00]} Kxa4 {[%emt 0:01:23]} 52. Bxa6 {[%emt 0:00:00]} Rf2+ {[%emt 0:01:47]} 53. Kd3 {[%emt 0:00:00]} b3 {[%emt 0:00:41]} 54. Kd4 {[%emt 0:00:00]} Rc2 {[%emt 0:01:25]} 55. Bd3 {[%emt 0:00:54]} Rc1 {[%emt 0:00:08]} 56. Rb8 {[%emt 0:02:11]} Ka3 {[%emt 0:00:21]} 57. Rb6 {[%emt 0:00:28]} Kb2 {[%emt 0:00:21]} 58. Ba6 {[%emt 0:02:26]} Rd1+ {[%emt 0:00:49]} 59. Kc5 {[%emt 0:00:33]} Kc3 {[%emt 0:00:46]} 60. Be2 {[%emt 0:00:54]} Re1 {[%emt 0:00:27]} 61. Bg4 {[%emt 0:02:01]} b2 {[%emt 0:01:40]} 62. Bf5 {[%emt 0:00:20]} Re5 {[%emt 0:00:17]} 63. Bb1 {[%emt 0:00:45]} Re1 {[%emt 0:00:58]} 64. Bf5 {[%emt 0:00:43]} Rf1 {[%emt 0:00:07]} 65. Bg6 {[%emt 0:00:29]} Rf6 {[%emt 0:00:16]} 66. Bb1 {[%emt 0:00:39]} d4 {[%emt 0:01:00]} 67. Bh7 {[%emt 0:00:33]} Rh6 {[%emt 0:00:22]} 68. Bb1 {[%emt 0:00:31]} Rh5+ {[%emt 0:00:22]} 69. Kd6 {[%emt 0:00:05]} c5 {[%emt 0:00:14]} 70. Rb8 {[%emt 0:00:09]} c4 {[%emt 0:00:14]} 71. Rb7 {[%emt 0:01:17]} Rh1 {[%emt 0:00:27]} 72. Ba2 {[%emt 0:00:22]} Ra1 {[%emt 0:00:20]} 73. Bxc4 {[%emt 0:00:24]} b1=Q {[%emt 0:00:09]} 74. Ke5 {[%emt 0:00:06]} 0-1

[Event "44th Chess Olympiad Women 2022"]
[Site "Chennai"]
[Date "2022.08.02"]
[Round "5.12"]
[White "Karavade, Eesha"]
[Black "Alboredo, Julia"]
[Result "1/2-1/2"]
[ECO "E63"]
[WhiteElo "2339"]
[BlackElo "2264"]
[Annotator "RC"]
[PlyCount "60"]
[EventDate "2022.07.29"]
[EventType "team-tourn"]
[EventCountry "IND"]
[SourceTitle "playchess.com"]
[Source "ChessBase"]
[SourceQuality "1"]
[WhiteTeam "India"]
[BlackTeam "Brazil"]
[WhiteTeamCountry "IND"]
[BlackTeamCountry "BRA"]
[TimeControl "40/5400+30:1800+30"]

1. d4 {[%emt 0:00:12]} Nf6 {[%emt 0:00:11]} 2. c4 {[%emt 0:00:27]} g6 {[%emt 0:00:10]} 3. g3 {[%emt 0:00:29]} Bg7 {[%emt 0:00:21]} 4. Bg2 {[%emt 0:00:08]} O-O {[%emt 0:00:54]} 5. Nc3 {[%emt 0:00:06]} d6 {[%emt 0:00:09]} 6. Nf3 {[%emt 0:00:09]} Nc6 {[%emt 0:05:13]} 7. O-O {[%emt 0:01:22]} a6 {[%emt 0:00:11]} 8. b3 {[%emt 0:01:27]} Rb8 {[%emt 0:02:59]} 9. d5 {[%emt 0:03:29]} Na5 {[%emt 0:00:39]} 10. Bg5 {[%emt 0:00:08]} c5 {[%emt 0:02:16]} 11. dxc6 {[%emt 0:01:14]} Nxc6 {[%emt 0:00:47]} 12. Qd2 {[%emt 0:08:26]} Qa5 {[%emt 0:16:37]} 13. Rac1 {[%emt 0:02:58]} Be6 {[%emt 0:06:51]} 14. Rfd1 {[%emt 0:20:16]} Rfd8 {[%emt 0:08:07]} 15. Bxf6 {[%emt 0:19:02]} Bxf6 {[%emt 0:06:50]} 16. Nd5 {[%emt 0:00:33]} Qxd2 {[%emt 0:03:47]} 17. Nxf6+ {[%emt 0:01:53]} exf6 {[%emt 0:00:08]} 18. Nxd2 {[%emt 0:07:59]} d5 {[%emt 0:03:33]} 19. cxd5 {[%emt 0:00:44]} Bxd5 {[%emt 0:00:17]} 20. Bxd5 {[%emt 0:00:20]} Rxd5 {[%emt 0:00:07]} 21. Ne4 {[%emt 0:00:06]} Rxd1+ {[%emt 0:02:13]} 22. Rxd1 {[%emt 0:00:12]} f5 {[%emt 0:02:33]} 23. Nc5 {[%emt 0:00:10]} Rd8 {[%emt 0:09:02]} 24. Rxd8+ {[%emt 0:05:59]} Nxd8 {[%emt 0:00:07]} 25. f4 {[%emt 0:04:18]} Kf8 {[%emt 0:01:52]} 26. e4 {[%emt 0:00:15]} fxe4 {[%emt 0:00:52]} 27. Nxe4 {[%emt 0:00:02]} Ke7 {[%emt 0:02:07]} 28. Kf2 {[%emt 0:00:15]} f5 {[%emt 0:01:14]} 29. Ng5 {[%emt 0:01:14]} h6 {[%emt 0:00:19]} 30. Nf3 {[%emt 0:00:37]} Nc6 {[%emt 0:02:13]} 1/2-1/2

[Event "44th Chess Olympiad Women 2022"]
[Site "Chennai"]
[Date "2022.08.02"]
[Round "5.12"]
[White "Pratyusha, Bodda"]
[Black "Terao, Juliana Sayumi"]
[Result "0-1"]
[ECO "D00"]
[WhiteElo "2310"]
[BlackElo "2223"]
[Annotator "RC"]
[PlyCount "118"]
[EventDate "2022.07.29"]
[EventType "team-tourn"]
[EventCountry "IND"]
[SourceTitle "playchess.com"]
[Source "ChessBase"]
[SourceQuality "1"]
[WhiteTeam "India"]
[BlackTeam "Brazil"]
[WhiteTeamCountry "IND"]
[BlackTeamCountry "BRA"]
[TimeControl "40/5400+30:1800+30"]

1. d4 {[%emt 0:00:24]} d5 {[%emt 0:00:07]} 2. Bf4 {[%emt 0:00:11]} Nf6 {[%emt 0:00:29]} 3. e3 {[%emt 0:00:04]} c5 {[%emt 0:00:29]} 4. c3 {[%emt 0:00:05]} Nc6 {[%emt 0:00:24]} 5. Nd2 {[%emt 0:00:08]} Bf5 {[%emt 0:00:52]} 6. Ngf3 {[%emt 0:00:51]} e6 {[%emt 0:00:33]} 7. Bb5 {[%emt 0:05:38]} Qb6 {[%emt 0:06:46]} 8. Qa4 {[%emt 0:01:33]} Nd7 {[%emt 0:23:28]} 9. O-O {[%emt 0:05:29]} Be7 {[%emt 0:00:25]} 10. Ne5 {[%emt 0:02:30]} Ndxe5 {[%emt 0:01:13]} 11. Bxe5 {[%emt 0:00:05]} O-O {[%emt 0:00:54]} 12. Bg3 {[%emt 0:07:03]} Rac8 {[%emt 0:04:22]} 13. dxc5 {[%emt 0:03:21]} Bxc5 {[%emt 0:02:34]} 14. Bxc6 {[%emt 0:01:42]} bxc6 {[%emt 0:01:58]} 15. b3 {[%emt 0:04:49]} Be7 {[%emt 0:04:58]} 16. Bh4 {[%emt 0:03:34]} f6 {[%emt 0:01:05]} 17. e4 {[%emt 0:01:34]} dxe4 {[%emt 0:02:31]} 18. Nxe4 {[%emt 0:00:24]} Qb5 {[%emt 0:00:31]} 19. Qd4 {[%emt 0:02:30]} Qd5 {[%emt 0:02:51]} 20. f3 {[%emt 0:04:33]} c5 {[%emt 0:10:34]} 21. Qe3 {[%emt 0:03:03]} Rfd8 {[%emt 0:03:34]} 22. Bf2 {[%emt 0:01:49]} a5 {[%emt 0:06:19]} 23. c4 {[%emt 0:03:28]} Qc6 {[%emt 0:00:07]} 24. Rfd1 {[%emt 0:06:40]} Re8 {[%emt 0:01:46]} 25. Nc3 {[%emt 0:01:28]} Bf8 {[%emt 0:01:40]} 26. Na4 {[%emt 0:04:26]} Qc7 {[%emt 0:02:17]} 27. Rd2 {[%emt 0:03:40]} Bd6 {[%emt 0:03:23]} 28. Bg3 {[%emt 0:04:39]} e5 {[%emt 0:03:38]} 29. Nc3 {[%emt 0:01:27]} Bf8 {[%emt 0:00:27]} 30. Rad1 {[%emt 0:02:33]} Be6 {[%emt 0:03:14]} 31. Bf2 {[%emt 0:02:05]} Qf7 {[%emt 0:02:01]} 32. Na4 {[%emt 0:00:59]} g5 {[%emt 0:01:05]} 33. Nb6 {[%emt 0:04:44]} Rc6 {[%emt 0:01:41]} 34. Nd5 {[%emt 0:00:19]} Ra6 {[%emt 0:02:36]} 35. h4 {[%emt 0:01:43]} g4 {[%emt 0:00:51]} 36. fxg4 {[%emt 0:02:20]} Bxg4 {[%emt 0:00:27]} 37. Rf1 {[%emt 0:00:18]} f5 {[%emt 0:00:36]} 38. Qc3 {[%emt 0:01:19]} f4 {[%emt 0:02:56]} 39. a4 {[%emt 0:08:17]} e4 {[%emt 0:02:25]} 40. Qc1 {[%emt 0:05:44]} Rg6 {[%emt 0:01:25]} 41. Qc3 {[%emt 0:04:10]} Bf3 {[%emt 0:14:17]} 42. Be1 {[%emt 0:03:38]} Bg7 {[%emt 0:00:29]} 43. Qxa5 {[%emt 0:01:03]} e3 {[%emt 0:02:44]} 44. Rxf3 {[%emt 0:00:51]} exd2 {[%emt 0:00:08]} 45. Qxd2 {[%emt 0:00:18]} Rg4 {[%emt 0:11:56]} 46. Bf2 {[%emt 0:03:49]} Be5 {[%emt 0:00:49]} 47. a5 {[%emt 0:06:52]} Qg7 {[%emt 0:01:00]} 48. Bxc5 {[%emt 0:00:25]} Rxh4 {[%emt 0:00:20]} 49. Nxf4 {[%emt 0:02:48]} Kh8 {[%emt 0:01:59]} 50. Nh3 {[%emt 0:03:04]} Rg4 {[%emt 0:01:01]} 51. Rf2 {[%emt 0:03:11]} Rg8 {[%emt 0:00:11]} 52. a6 {[%emt 0:01:03]} Rg3 {[%emt 0:00:14]} 53. Kf1 {[%emt 0:03:18]} Rxb3 {[%emt 0:00:06]} 54. Qd5 {[%emt 0:02:31]} Rb1+ {[%emt 0:00:27]} 55. Ke2 {[%emt 0:00:21]} Qg4+ {[%emt 0:00:15]} 56. Rf3 {[%emt 0:00:40]} Qxg2+ {[%emt 0:01:04]} 57. Nf2 {[%emt 0:00:04]} Qf1+ {[%emt 0:01:05]} 58. Kd2 {[%emt 0:01:17]} Rb2+ {[%emt 0:00:05]} 59. Ke3 {[%emt 0:00:34]} Qe2# {[%emt 0:00:06]} 0-1

[Event "44th Chess Olympiad Women 2022"]
[Site "Chennai"]
[Date "2022.08.02"]
[Round "5.12"]
[White "Librelato, Kathie Goulart"]
[Black "Nandhidhaa, P V"]
[Result "0-1"]
[ECO "B68"]
[WhiteElo "2255"]
[BlackElo "2312"]
[Annotator "RC"]
[PlyCount "66"]
[EventDate "2022.07.29"]
[EventType "team-tourn"]
[EventCountry "IND"]
[SourceTitle "playchess.com"]
[Source "ChessBase"]
[SourceQuality "1"]
[WhiteTeam "Brazil"]
[BlackTeam "India"]
[WhiteTeamCountry "BRA"]
[BlackTeamCountry "IND"]
[TimeControl "40/5400+30:1800+30"]

1. e4 {[%emt 0:00:03]} c5 {[%emt 0:00:37]} 2. Nf3 {[%emt 0:00:08]} Nc6 {[%emt 0:00:08]} 3. d4 {[%emt 0:00:06]} cxd4 {[%emt 0:00:05]} 4. Nxd4 {[%emt 0:00:04]} Nf6 {[%emt 0:00:13]} 5. Nc3 {[%emt 0:00:06]} d6 {[%emt 0:00:08]} 6. Bg5 {[%emt 0:00:08]} e6 {[%emt 0:00:21]} 7. Qd2 {[%emt 0:00:06]} Be7 {[%emt 0:00:42]} 8. O-O-O {[%emt 0:00:28]} a6 {[%emt 0:00:14]} 9. f4 {[%emt 0:00:10]} Bd7 {[%emt 0:01:47]} 10. Nf3 {[%emt 0:00:12]} b5 {[%emt 0:01:59]} 11. a3 {[%emt 0:00:14]} h6 {[%emt 0:09:40]} 12. Bh4 {[%emt 0:00:13]} b4 {[%emt 0:06:16]} 13. axb4 {[%emt 0:00:10]} Nxb4 {[%emt 0:01:09]} 14. Kb1 {[%emt 0:01:14]} Bc6 {[%emt 0:06:02]} 15. Bc4 {[%emt 0:05:13]} Qb6 {[%emt 0:11:45]} 16. Rhe1 {[%emt 0:14:16]} Rb8 {[%emt 0:05:02]} 17. e5 {[%emt 0:26:51]} dxe5 {[%emt 0:07:26]} 18. Nxe5 {[%emt 0:02:57]} O-O {[%emt 0:09:40]} 19. f5 {[%emt 0:24:40]} Rfd8 {[%emt 0:08:35]} 20. Nd3 {[%emt 0:01:06]} Qd4 {[%emt 0:04:40]} 21. Bg3 {[%emt 0:14:47]} Qxc4 {[%emt 0:01:24]} 22. Bxb8 {[%emt 0:00:05]} Rxb8 {[%emt 0:01:29]} 23. Ne5 {[%emt 0:01:56]} Qc5 {[%emt 0:01:48]} 24. fxe6 {[%emt 0:00:09]} fxe6 {[%emt 0:01:03]} 25. Nxc6 {[%emt 0:01:33]} Qxc6 {[%emt 0:01:26]} 26. Qf4 {[%emt 0:00:17]} Rb7 {[%emt 0:03:53]} 27. Qe5 {[%emt 0:01:11]} Nfd5 {[%emt 0:05:21]} 28. Qxe6+ {[%emt 0:02:01]} Qxe6 {[%emt 0:00:17]} 29. Rxe6 {[%emt 0:00:07]} Nxc3+ {[%emt 0:00:21]} 30. bxc3 {[%emt 0:00:04]} Nd5+ {[%emt 0:00:26]} 31. Ka1 {[%emt 0:01:28]} Nxc3 {[%emt 0:00:07]} 32. Rxe7 {[%emt 0:01:35]} Rxe7 {[%emt 0:00:34]} 33. Rd6 {[%emt 0:00:10]} Rb7 {[%emt 0:00:32]} 0-1